lending/lending_fUSD_20250131
["ID","MTS","AMOUNT","RATE_DAILY","PERIOD"]
[351013357,1738285857059,-500.0,0.00019452,3]
[351013358,1738285857068,-500.0,0.00019452,3]
[351013359,1738285857077,-500.0,0.00019452,3]
[351013360,1738285857087,-510.81,0.00019452,3]
[351013361,1738285857096,-544.02851234,0.00019452,3]
[351013362,1738285857106,-223.37402379,0.00019452,3]
[351013363,1738285857116,-786.29,0.00019452,3]
[351013364,1738285857125,-500.0,0.00019452,3]
[351013365,1738285857135,-500.0,0.00019452,3]
[351013366,1738285857145,-548.19,0.00019452,3]
[351013367,1738285857154,-500.0,0.00019452,3]
[351013368,1738285857164,-500.0,0.00019452,3]
[351013369,1738285857173,-500.0,0.00019452,3]
[351013370,1738285857182,-500.0,0.00019452,3]
[351013371,1738285857192,-500.0,0.00019452,3]
[351013372,1738285857201,-500.0,0.00019452,3]
[351013373,1738285857210,-500.0,0.00019452,3]
[351013374,1738285857219,-500.0,0.00019452,3]
[351013375,1738285857228,-500.0,0.00019452,3]
[351013376,1738285857238,-500.0,0.00019452,3]
[351013377,1738285857247,-500.0,0.00019452,3]
[351013378,1738285857256,-500.0,0.00019452,3]
[351013379,1738285857267,-500.0,0.00019452,3]
[351013380,1738285857276,-526.2,0.00019452,3]
[351013381,1738285857285,-500.0,0.00019452,3]
[351013382,1738285857294,-500.0,0.00019452,3]
[351013383,1738285857303,-500.0,0.00019452,3]
[351013384,1738285857313,-500.0,0.00019452,3]
[351013385,1738285857322,-525.21,0.00019452,3]
[351013386,1738285857331,-527.07,0.00019452,3]
[351013387,1738285857340,-745.17,0.00019452,3]
[351013388,1738285857349,-925.47,0.00019452,3]
[351013389,1738285857358,-500.0,0.00019452,3]
[351013390,1738285857369,-500.0,0.00019452,3]
[351013391,1738285857380,-500.0,0.00019452,3]
[351013392,1738285857389,-2061.861226,0.00019452,3]
[351013393,1738285857398,-500.0,0.00019452,3]
[351013394,1738285857408,-1806.37,0.00019452,3]
[351013395,1738285857418,-591.54,0.00019452,3]
[351013396,1738285857427,-2053.2,0.00019452,3]
[351013397,1738285857436,-1698.45,0.00019452,3]
[351013398,1738285857448,-154.4946,0.00019452,3]
[351013399,1738285857458,-500.0,0.00019452,3]
[351013400,1738285857468,-500.0,0.00019452,3]
[351013401,1738285857477,-286.92853326,0.00019452,3]
[351013402,1738285857486,-651.45,0.00019452,3]
[351013403,1738285857495,-500.0,0.00019452,3]
[351013404,1738285857505,-559.93,0.00019452,3]
[351013405,1738285857513,-500.0,0.00019452,3]
[351013406,1738285857522,-500.0,0.00019452,3]
[351013407,1738285857531,-500.0,0.00019452,3]
[351013408,1738285857541,-513.38417895,0.00019452,3]
[351013409,1738285857550,-1256.13,0.00019452,3]
[351013410,1738285857559,-599.1,0.00019452,3]
[351013411,1738285857568,-500.0,0.00019452,3]
[351013412,1738285857577,-500.0,0.00019452,3]
[351013413,1738285857586,-2658.898062,0.00019452,3]
[351013414,1738285857595,-403.51242221,0.00019452,3]
[351013415,1738285857604,-1261.22,0.00019452,3]
[351013416,1738285857613,-500.0,0.00019452,3]
[351013417,1738285857622,-1053.91,0.00019452,3]
[351013418,1738285857631,-500.0,0.00019452,3]
[351013419,1738285857640,-2378.33,0.00019452,3]
[351013420,1738285857649,-500.0,0.00019452,3]
[351013421,1738285857658,-1647.42,0.00019452,3]
[351013422,1738285857667,-528.13,0.00019452,3]
[351013423,1738285857676,-500.0,0.00019452,3]
[351013424,1738285857685,-500.0,0.00019452,3]
[351013425,1738285857694,-500.0,0.00019452,3]
[351013426,1738285857703,-830.8,0.00019452,3]
[351013427,1738285857712,-646.58,0.00019452,3]
[351013428,1738285857722,-500.0,0.00019452,3]
[351013429,1738285857731,-500.0,0.00019452,3]
[351013430,1738285857739,-1768.56,0.00019452,3]
[351013431,1738285857749,-827.02,0.00019452,3]
[351013432,1738285857758,-500.0,0.00019452,3]
[351013433,1738285857768,-500.0,0.00019452,3]
[351013434,1738285857778,-500.0,0.00019452,3]
[351013435,1738285857787,-500.0,0.00019452,3]
[351013436,1738285857796,-500.0,0.00019452,3]
[351013437,1738285857805,-500.0,0.00019452,3]
[351013438,1738285857814,-1180.08,0.00019452,3]
[351013439,1738285857823,-1257.92,0.00019452,3]
[351013440,1738285857832,-500.0,0.00019452,3]
[351013441,1738285857841,-1066.59,0.00019452,3]
[351013442,1738285857850,-500.0,0.00019452,3]
[351013443,1738285857859,-500.0,0.00019452,3]
[351013444,1738285857868,-673.01,0.00019452,3]
[351013445,1738285857878,-500.0,0.00019452,3]
[351013446,1738285857887,-500.0,0.00019452,3]
[351013447,1738285857896,-2355.23,0.00019452,3]
[351013448,1738285857905,-500.0,0.00019452,3]
[351013449,1738285857914,-811.38,0.00019452,3]
[351013450,1738285857923,-500.0,0.00019452,3]
[351013451,1738285857933,-500.0,0.00019452,3]
[351013452,1738285857942,-882.78,0.00019452,3]
[351013453,1738285857951,-500.0,0.00019452,3]
[351013454,1738285857961,-501.31,0.00019452,3]
[351013455,1738285857970,-500.0,0.00019452,3]
[351013456,1738285857979,-500.0,0.00019452,3]
[351013457,1738285857988,-500.0,0.00019452,3]
[351013458,1738285857998,-500.0,0.00019452,3]
[351013459,1738285858007,-1154.0,0.00019452,3]
[351013460,1738285858017,-500.0,0.00019452,3]
[351013461,1738285858027,-1504.22,0.00019452,3]
[351013462,1738285858037,-842.84,0.00019452,3]
[351013463,1738285858047,-785.04,0.00019452,3]
[351013464,1738285858057,-500.0,0.00019452,3]
[351013465,1738285858067,-500.0,0.00019452,3]
[351013466,1738285858076,-500.0,0.00019452,3]
[351013467,1738285858086,-560.25974151,0.00019452,3]
[351013468,1738285858095,-1047.38,0.00019452,3]
[351013469,1738285858105,-500.0,0.00019452,3]
[351013470,1738285858115,-883.19,0.00019452,3]
[351013471,1738285858124,-1659.64,0.00019452,3]
[351013472,1738285858134,-500.0,0.00019452,3]
[351013473,1738285858144,-500.0,0.00019452,3]
[351013474,1738285858153,-500.0,0.00019452,3]
[351013475,1738285858163,-500.0,0.00019452,3]
[351013476,1738285858172,-500.0,0.00019452,3]
[351013477,1738285858183,-630.33,0.00019452,3]
[351013478,1738285858194,-769.55,0.00019452,3]
[351013479,1738285858204,-855.99,0.00019452,3]
[351013480,1738285858214,-1537.34,0.00019452,3]
[351013481,1738285858223,-942.97,0.00019452,3]
[351013482,1738285858234,-779.19,0.00019452,3]
[351013483,1738285858243,-500.0,0.00019452,3]
[351013484,1738285858253,-668.93,0.00019452,3]
[351013485,1738285858263,-500.0,0.00019452,3]
[351013486,1738285858272,-571.93,0.00019452,3]
[351013487,1738285858282,-663.1,0.00019452,3]
[351013488,1738285858292,-500.0,0.00019452,3]
[351013489,1738285858305,-500.0,0.00019452,3]
[351013490,1738285858316,-500.0,0.00019452,3]
[351013491,1738285858326,-370.81568971,0.00019452,3]
[351013492,1738285858337,-500.0,0.00019452,3]
[351013493,1738285858347,-1241.02,0.00019452,3]
[351013494,1738285858357,-987.56,0.00019452,3]
[351013495,1738285858369,-500.0,0.00019452,3]
[351013496,1738285858380,-555.22590359,0.00019452,3]
[351013497,1738285858391,-768.56,0.00019452,3]
[351013498,1738285858401,-500.0,0.00019452,3]
[351013499,1738285858410,-500.0,0.00019452,3]
[351013500,1738285858421,-1033.99,0.00019452,3]
[351013501,1738285858430,-500.0,0.00019452,3]
[351013502,1738285858440,-500.0,0.00019452,3]
[351013503,1738285858451,-680.74,0.00019452,3]
[351013504,1738285858461,-698.59,0.00019452,3]
[351013505,1738285858471,-823.59,0.00019452,3]
[351013506,1738285858481,-500.0,0.00019452,3]
[351013507,1738285858490,-500.0,0.00019452,3]
[351013508,1738285858500,-500.0,0.00019452,3]
[351013509,1738285858510,-500.0,0.00019452,3]
[351013510,1738285858521,-500.0,0.00019452,3]
[351013511,1738285858531,-519.19,0.00019452,3]
[351013512,1738285858541,-500.0,0.00019452,3]
[351013513,1738285858550,-1495.48,0.00019452,3]
[351013514,1738285858560,-500.0,0.00019452,3]
[351013515,1738285858570,-1856.45,0.00019452,3]
[351013516,1738285858580,-817.5,0.00019452,3]
[351013517,1738285858590,-500.0,0.00019452,3]
[351013518,1738285858599,-541.02,0.00019452,3]
[351013519,1738285858609,-1287.68,0.00019452,3]
[351013520,1738285858618,-1322.62,0.00019452,3]
[351013521,1738285858628,-524.86,0.00019452,3]
[351013522,1738285858640,-1287.13,0.00019452,3]
[351013523,1738285858650,-500.0,0.00019452,3]
[351013524,1738285858659,-500.0,0.00019452,3]
[351013525,1738285858669,-798.55,0.00019452,3]
[351013526,1738285858678,-500.0,0.00019452,3]
[351013527,1738285858689,-500.0,0.00019452,3]
[351013528,1738285858700,-577.42,0.00019452,3]
[351013529,1738285858711,-663.8,0.00019452,3]
[351013530,1738285858720,-663.87,0.00019452,3]
[351013531,1738285858732,-500.0,0.00019452,3]
[351013532,1738285858741,-842.35,0.00019452,3]
[351013533,1738285858751,-901.5,0.00019452,3]
[351013534,1738285858762,-500.0,0.00019452,3]
[351013535,1738285858772,-1267.32,0.00019452,3]
[351013536,1738285858781,-500.0,0.00019452,3]
[351013537,1738285858791,-500.0,0.00019452,3]
[351013538,1738285858802,-500.0,0.00019452,3]
[351013539,1738285858812,-766.4,0.00019452,3]
[351013540,1738285858821,-1330.28,0.00019452,3]
[351013541,1738285858831,-500.0,0.00019452,3]
[351013542,1738285858841,-818.28,0.00019452,3]
[351013543,1738285858851,-769.31,0.00019452,3]
[351013544,1738285858862,-1212.17,0.00019452,3]
[351013545,1738285858874,-859.73,0.00019452,3]
[351013546,1738285858885,-500.0,0.00019452,3]
[351013547,1738285858897,-1432.59,0.00019452,3]
[351013548,1738285858914,-500.0,0.00019452,3]
[351013549,1738285858926,-2255.84,0.00019452,3]
[351013550,1738285858937,-941.73,0.00019452,3]
[351013551,1738285858946,-500.0,0.00019452,3]
[351013552,1738285858956,-2158.98,0.00019452,3]
[351013553,1738285858965,-854.5,0.00019452,3]
[351013554,1738285858975,-500.0,0.00019452,3]
[351013555,1738285858985,-610.57,0.00019452,3]
[351013556,1738285858995,-500.0,0.00019452,3]
[351013557,1738285859005,-787.72,0.00019452,3]
[351013558,1738285859015,-500.0,0.00019452,3]
[351013559,1738285859025,-785.53,0.00019452,3]
[351013560,1738285859035,-787.64,0.00019452,3]
[351013561,1738285859046,-851.84,0.00019452,3]
[351013562,1738285859056,-794.18,0.00019452,3]
[351013563,1738285859066,-500.0,0.00019452,3]
[351013564,1738285859076,-500.0,0.00019452,3]
[351013565,1738285859087,-500.0,0.00019452,3]
[351013566,1738285859096,-500.0,0.00019452,3]
[351013567,1738285859106,-500.0,0.00019452,3]
[351013568,1738285859116,-500.0,0.00019452,3]
[351013569,1738285859126,-500.0,0.00019452,3]
[351013570,1738285859136,-500.0,0.00019452,3]
[351013571,1738285859146,-1154.89,0.00019452,3]
[351013572,1738285859156,-871.32,0.00019452,3]
[351013573,1738285859169,-500.0,0.00019452,3]
[351013574,1738285859179,-500.0,0.00019452,3]
[351013575,1738285859188,-540.08,0.00019452,3]
[351013576,1738285859197,-500.0,0.00019452,3]
[351013577,1738285859207,-1399.31,0.00019452,3]
[351013578,1738285859218,-500.0,0.00019452,3]
[351013579,1738285859227,-762.2,0.00019452,3]
[351013580,1738285859237,-500.0,0.00019452,3]
[351013581,1738285859246,-500.0,0.00019452,3]
[351013582,1738285859256,-1217.42,0.00019452,3]
[351013583,1738285859516,-1176.02,0.00019452,3]
[351013584,1738285859532,-500.0,0.00019452,3]
[351013585,1738285859543,-500.0,0.00019452,3]
[351013586,1738285859554,-500.0,0.00019452,3]
[351013587,1738285859566,-500.0,0.00019452,3]
[351013588,1738285859577,-1410.67,0.00019452,3]
[351013589,1738285859587,-1838.6,0.00019452,3]
[351013590,1738285859597,-488.89660593,0.00019452,3]
[351013591,1738285859607,-500.0,0.00019452,3]
[351013592,1738285859618,-500.0,0.00019452,3]
[351013593,1738285859628,-821.89,0.00019452,3]
[351013594,1738285859638,-1352.89,0.00019452,3]
[351013595,1738285859649,-1048.21,0.00019452,3]
[351013596,1738285859661,-500.0,0.00019452,3]
[351013597,1738285859672,-635.93,0.00019452,3]
[351013598,1738285859681,-746.06,0.00019452,3]
[351013599,1738285859691,-500.0,0.00019452,3]
[351013600,1738285859702,-2266.73,0.00019452,3]
[351013601,1738285859713,-500.0,0.00019452,3]
[351013602,1738285859723,-500.0,0.00019452,3]
[351013603,1738285859732,-500.0,0.00019452,3]
[351013604,1738285859742,-500.0,0.00019452,3]
[351013605,1738285859752,-614.07,0.00019452,3]
[351013606,1738285859762,-636.84,0.00019452,3]
[351013607,1738285859772,-500.0,0.00019452,3]
[351013608,1738285859782,-1193.64,0.00019452,3]
[351013609,1738285859791,-500.0,0.00019452,3]
[351013610,1738285859801,-1736.38,0.00019452,3]
[351013611,1738285859811,-1454.94,0.00019452,3]
[351013612,1738285859820,-500.0,0.00019452,3]
[351013613,1738285859830,-500.0,0.00019452,3]
[351013614,1738285859840,-500.0,0.00019452,3]
[351013615,1738285859849,-520.7172234,0.00019452,3]
[351013616,1738285859859,-943.57,0.00019452,3]
[351013617,1738285859869,-2203.01,0.00019452,3]
[351013618,1738285859878,-500.0,0.00019452,3]
[351013619,1738285859888,-1084.41,0.00019452,3]
[351013620,1738285859898,-1096.55,0.00019452,3]
[351013621,1738285859908,-500.0,0.00019452,3]
[351013622,1738285859918,-500.0,0.00019452,3]
[351013623,1738285859929,-934.13,0.00019452,3]
[351013624,1738285859940,-500.0,0.00019452,3]
[351013625,1738285859950,-1162.28,0.00019452,3]
[351013626,1738285859960,-500.0,0.00019452,3]
[351013627,1738285859972,-500.0,0.00019452,3]
[351013628,1738285859982,-500.0,0.00019452,3]
[351013629,1738285859992,-521.82469498,0.00019452,3]
[351013630,1738285860001,-500.0,0.00019452,3]
[351013631,1738285860011,-1739.99,0.00019452,3]
[351013632,1738285860023,-1766.59,0.00019452,3]
[351013633,1738285860034,-692.74,0.00019452,3]
[351013634,1738285860045,-1087.4,0.00019452,3]
[351013635,1738285860056,-500.0,0.00019452,3]
[351013636,1738285860066,-2396.16,0.00019452,3]
[351013637,1738285860076,-500.0,0.00019452,3]
[351013638,1738285860086,-500.0,0.00019452,3]
[351013639,1738285860096,-247.84786644,0.00019452,3]
[351013640,1738285860106,-500.0,0.00019452,3]
[351013641,1738285860115,-644.53,0.00019452,3]
[351013642,1738285860126,-500.0,0.00019452,3]
[351013643,1738285860136,-1569.12,0.00019452,3]
[351013644,1738285860146,-1511.58,0.00019452,3]
[351013645,1738285860156,-500.0,0.00019452,3]
[351013646,1738285860166,-1237.69,0.00019452,3]
[351013647,1738285860177,-731.45,0.00019452,3]
[351013648,1738285860189,-500.0,0.00019452,3]
[351013649,1738285860199,-500.0,0.00019452,3]
[351013650,1738285860209,-573.71,0.00019452,3]
[351013651,1738285860220,-785.46,0.00019452,3]
[351013652,1738285860230,-557.40027168,0.00019452,3]
[351013653,1738285860241,-928.04,0.00019452,3]
[351013654,1738285860251,-1392.4,0.00019452,3]
[351013655,1738285860261,-500.0,0.00019452,3]
[351013656,1738285860271,-597.63,0.00019452,3]
[351013657,1738285860280,-2587.92,0.00019452,3]
[351013658,1738285860291,-500.0,0.00019452,3]
[351013659,1738285860301,-500.0,0.00019452,3]
[351013660,1738285860311,-794.48,0.00019452,3]
[351013661,1738285860321,-1241.83,0.00019452,3]
[351013662,1738285860331,-500.0,0.00019452,3]
[351013663,1738285860342,-500.0,0.00019452,3]
[351013664,1738285860352,-1044.78,0.00019452,3]
[351013665,1738285860363,-2225.42,0.00019452,3]
[351013666,1738285860378,-500.0,0.00019452,3]
[351013667,1738285860387,-1959.38,0.00019452,3]
[351013668,1738285860396,-1122.77,0.00019452,3]
[351013669,1738285860406,-500.0,0.00019452,3]
[351013670,1738285860418,-355.00109136,0.00019452,3]
[351013671,1738285860428,-500.0,0.00019452,3]
[351013672,1738285860438,-4658.97,0.00019452,3]
[351013673,1738285860449,-500.0,0.00019452,3]
[351013674,1738285860460,-500.0,0.00019452,3]
[351013675,1738285860470,-778.14,0.00019452,3]
[351013676,1738285860480,-2475.53,0.00019452,3]
[351013677,1738285860490,-500.0,0.00019452,3]
[351013678,1738285860500,-954.41,0.00019452,3]
[351013679,1738285860511,-2890.46,0.00019452,3]
[351013680,1738285860521,-850.69,0.00019452,3]
[351013681,1738285860531,-500.0,0.00019452,3]
[351013682,1738285860542,-1690.27,0.00019452,3]
[351013683,1738285860552,-691.53,0.00019452,3]
[351013684,1738285860563,-4092.99,0.00019452,3]
[351013685,1738285860573,-787.68,0.00019452,3]
[351013686,1738285860583,-779.0,0.00019452,3]
[351013687,1738285860593,-872.67,0.00019452,3]
[351013688,1738285860603,-2338.19,0.00019452,3]
[351013689,1738285860613,-779.31,0.00019452,3]
[351013690,1738285860622,-500.0,0.00019452,3]
[351013691,1738285860632,-1514.35,0.00019452,3]
[351013692,1738285860642,-551.05,0.00019452,3]
[351013693,1738285860652,-9433.97,0.00019452,3]
[351013694,1738285860661,-1582.96,0.00019452,3]
[351013695,1738285860671,-564.27,0.00019452,3]
[351013696,1738285860681,-2203.49859912,0.00019452,3]
[351013697,1738285861144,-287.665,0.00019452,3]
[351013698,1738285861156,-466.88640088,0.00019452,3]
[351013699,1738285861166,-1015.6,0.00019452,3]
[351013700,1738285861176,-500.0,0.00019452,3]
[351013701,1738285861186,-1886.96,0.00019452,3]
[351013702,1738285861195,-151.0,0.00019452,2]
[351013703,1738285861205,-1396.92,0.00019452,3]
[351013704,1738285861215,-23990.2,0.00019452,3]
[351013705,1738285861225,-890.69,0.00019452,3]
[351013706,1738285861234,-500.0,0.00019452,3]
[351013707,1738285861243,-6864.1,0.00019452,3]
[351013708,1738285861255,-151.0,0.00019452,2]
[351013709,1738285861266,-928.64,0.00019452,3]
[351013710,1738285861277,-1790.74,0.00019452,3]
[351013711,1738285861286,-500.0,0.00019452,3]
[351013712,1738285861296,-1548.01,0.00019452,3]
[351013713,1738285861305,-500.0,0.00019452,3]
[351013714,1738285861315,-3369.13,0.00019452,3]
[351013715,1738285861325,-2226.7,0.00019452,3]
[351013716,1738285861335,-1893.65,0.00019452,3]
[351013717,1738285861344,-500.0,0.00019452,3]
[351013718,1738285861354,-1040.31,0.00019452,3]
[351013719,1738285861364,-775.01,0.00019452,3]
[351013720,1738285861377,-2935.41,0.00019452,3]
[351013721,1738285861387,-575.00144203,0.00019452,3]
[351013722,1738285861396,-998.41,0.00019452,3]
[351013723,1738285861406,-732.59,0.00019452,3]
[351013724,1738285861417,-2385.96,0.00019452,3]
[351013725,1738285861427,-1113.33,0.00019452,3]
[351013726,1738285861436,-500.0,0.00019452,3]
[351013727,1738285861447,-500.0,0.00019452,3]
[351013728,1738285861458,-500.0,0.00019452,3]
[351013729,1738285861468,-1990.6,0.00019452,3]
[351013730,1738285861478,-500.0,0.00019452,3]
[351013731,1738285861487,-1902.47,0.00019452,3]
[351013732,1738285861496,-3963.38,0.00019452,3]
[351013733,1738285861507,-1486.97,0.00019452,2]
[351013734,1738285861517,-500.0,0.00019452,3]
[351013735,1738285861527,-500.0,0.00019452,3]
[351013736,1738285861538,-693.44,0.00019452,3]
[351013737,1738285861549,-2334.67,0.00019452,3]
[351013738,1738285861560,-968.27,0.00019452,3]
[351013739,1738285861572,-806.67,0.00019452,3]
[351013740,1738285861582,-696.31,0.00019452,3]
[351013741,1738285861591,-2163.39,0.00019452,3]
[351013742,1738285861601,-2891.56,0.00019452,3]
[351013743,1738285861610,-500.0,0.00019452,3]
[351013744,1738285861619,-500.0,0.00019452,3]
[351013745,1738285861629,-500.0,0.00019452,3]
[351013746,1738285861638,-608.89,0.00019452,3]
[351013747,1738285861647,-500.0,0.00019452,3]
[351013748,1738285861657,-1180.04,0.00019452,3]
[351013749,1738285861666,-2121.57,0.00019452,3]
[351013750,1738285861675,-2596.62,0.00019452,3]
[351013751,1738285861685,-1064.3,0.00019452,3]
[351013752,1738285861695,-1365.32,0.00019452,3]
[351013753,1738285861704,-500.0,0.00019452,3]
[351013754,1738285861714,-1960.81,0.00019452,3]
[351013755,1738285861723,-3311.05,0.00019452,3]
[351013756,1738285861733,-446.99432917,0.00019452,3]
[351013757,1738285861763,-2212.20567083,0.00019452,3]
[351013758,1738285861773,-2534.94,0.00019452,3]
[351013759,1738285861783,-1901.58,0.00019452,3]
[351013760,1738285861793,-500.0,0.00019452,3]
[351013761,1738285861804,-555.31,0.00019452,3]
[351013762,1738285861816,-951.44,0.00019452,3]
[351013763,1738285861826,-500.0,0.00019452,3]
[351013764,1738285861835,-1111.96,0.00019452,3]
[351013765,1738285861846,-1785.61,0.00019452,3]
[351013766,1738285861855,-500.0,0.00019452,3]
[351013767,1738285861865,-964.96,0.00019452,3]
[351013768,1738285861875,-3049.76,0.00019452,3]
[351013769,1738285861884,-781.54,0.00019452,3]
[351013770,1738285861894,-3516.21,0.00019452,3]
[351013771,1738285861904,-1561.42,0.00019452,3]
[351013772,1738285861913,-2415.15,0.00019452,3]
[351013773,1738285861923,-6492.32,0.00019452,3]
[351013774,1738285861933,-500.0,0.00019452,3]
[351013775,1738285861943,-162.87776023,0.00019452,3]
[351013776,1738285861952,-1447.94,0.00019452,3]
[351013777,1738285861962,-1966.23,0.00019452,3]
[351013778,1738285861972,-500.0,0.00019452,3]
[351013779,1738285862068,-2481.09,0.00019452,3]
[351013780,1738285862079,-500.0,0.00019452,3]
[351013781,1738285862089,-500.0,0.00019452,3]
[351013782,1738285862098,-557.51622587,0.00019452,3]
[351013783,1738285862108,-1401.99,0.00019452,3]
[351013784,1738285862119,-2500.45,0.00019452,3]
[351013785,1738285862130,-6241.54,0.00019452,3]
[351013786,1738285862141,-2846.15,0.00019452,3]
[351013787,1738285862151,-4209.78,0.00019452,3]
[351013788,1738285862161,-500.0,0.00019452,3]
[351013789,1738285862172,-2172.56,0.00019452,3]
[351013790,1738285862182,-500.0,0.00019452,3]
[351013791,1738285862192,-2330.8,0.00019452,3]
[351013792,1738285862203,-995.54,0.00019452,3]
[351013793,1738285862212,-500.0,0.00019452,3]
[351013794,1738285862221,-2168.69,0.00019452,3]
[351013795,1738285862232,-500.0,0.00019452,3]
[351013796,1738285862242,-163.63615862,0.00019452,3]
[351013797,1738285862252,-953.84,0.00019452,3]
[351013798,1738285862263,-3136.45,0.00019452,3]
[351013799,1738285862274,-1318.83,0.00019452,3]
[351013800,1738285862284,-2712.34,0.00019452,3]
[351013801,1738285862294,-1816.35,0.00019452,3]
[351013802,1738285862305,-654.27,0.00019452,3]
[351013803,1738285862315,-947.97,0.00019452,3]
[351013804,1738285862325,-1949.13,0.00019452,3]
[351013805,1738285862336,-13353.01,0.00019452,3]
[351013806,1738285862347,-7005.13,0.00019452,3]
[351013807,1738285862357,-296.213959,0.00019452,2]
[351013808,1738285862368,-500.0,0.00019452,3]
[351013809,1738285862386,-2042.75,0.00019452,3]
[351013810,1738285862395,-1049.25,0.00019452,3]
[351013811,1738285862404,-2427.53,0.00019452,3]
[351013812,1738285862414,-515.73,0.00019452,3]
[351013813,1738285862423,-500.0,0.00019452,3]
[351013814,1738285862432,-500.0,0.00019452,3]
[351013815,1738285862441,-500.0,0.00019452,3]
[351013816,1738285862451,-637.51,0.00019452,3]
[351013817,1738285862460,-10450.93,0.00019452,3]
[351013818,1738285862469,-4744.86,0.00019452,3]
[351013819,1738285862478,-1442.58,0.00019452,3]
[351013820,1738285862487,-1501.63,0.00019452,3]
[351013821,1738285862496,-500.0,0.00019452,3]
[351013822,1738285862506,-4383.49,0.00019452,3]
[351013823,1738285862515,-500.0,0.00019452,3]
[351013824,1738285862524,-1165.04,0.00019452,3]
[351013825,1738285862533,-353.67626761,0.00019452,3]
[351013826,1738285862542,-500.0,0.00019452,3]
[351013827,1738285862551,-500.0,0.00019452,3]
[351013828,1738285862560,-9167.88,0.00019452,3]
[351013829,1738285862569,-500.0,0.00019452,3]
[351013830,1738285862578,-500.0,0.00019452,3]
[351013831,1738285862587,-2328.11,0.00019452,3]
[351013832,1738285862595,-500.0,0.00019452,3]
[351013833,1738285862605,-1050.3,0.00019452,3]
[351013834,1738285862614,-8392.33,0.00019452,3]
[351013835,1738285862623,-500.0,0.00019452,3]
[351013836,1738285862632,-500.0,0.00019452,3]
[351013837,1738285862641,-500.0,0.00019452,3]
[351013838,1738285862650,-500.0,0.00019452,3]
[351013839,1738285862659,-2152.93,0.00019452,3]
[351013840,1738285862668,-500.0,0.00019452,3]
[351013841,1738285862678,-5040.14,0.00019452,3]
[351013842,1738285862687,-945.45,0.00019452,3]
[351013843,1738285862696,-801.03,0.00019452,3]
[351013844,1738285862705,-1028.7,0.00019452,3]
[351013845,1738285862715,-2424.94,0.00019452,3]
[351013846,1738285862724,-225.82126631,0.00019452,3]
[351013847,1738285862733,-3027.35,0.00019452,3]
[351013848,1738285862742,-500.0,0.00019452,3]
[351013849,1738285862751,-730.8,0.00019452,3]
[351013850,1738285862760,-835.66,0.00019452,3]
[351013851,1738285862770,-714.43,0.00019452,3]
[351013852,1738285862779,-1204.71,0.00019452,3]
[351013853,1738285862789,-500.0,0.00019452,3]
[351013854,1738285862798,-500.0,0.00019452,3]
[351013855,1738285862807,-1258.67,0.00019452,3]
[351013856,1738285862816,-3116.32,0.00019452,3]